Workbook

Sheet Лист1
A1: Дата | B1: Наименование фирмы | C1: Кол-во товар 1 | D1: Кол-во товар 2 | E1: Всего товар 1 | F1: Всего товар 2 | G1: Приход товар 1 | H1: Приход товар2
A2: НОЯБРЬ 2018
A3: Остаток | E3: 20 | F3: 10
A4: 18.11.2018 | B4: Фирма 1 | C4: 15 | E4: =IF(C4=0,"",E$3+SUM(G$3:G4)-SUM(C$3:C4)) -> 305 | F4: =IF(D4=0,"",F$3+SUM(H$3:H4)-SUM(D$3:D4)) ->  | G4: 300
A5: 19.11.2018 | B5: Фирма 2 | C5: 200 | E5: =IF(C5=0,"",E$3+SUM(G$3:G5)-SUM(C$3:C5)) -> 105 | F5: =IF(D5=0,"",F$3+SUM(H$3:H5)-SUM(D$3:D5)) ->  | H5: 200
A6: 19.11.2018 | B6: Фирма 3 | C6: 45 | E6: =IF(C6=0,"",E$3+SUM(G$3:G6)-SUM(C$3:C6)) -> 1260 | F6: =IF(D6=0,"",F$3+SUM(H$3:H6)-SUM(D$3:D6)) ->  | G6: 1200
A7: 2018-11-19 | B7: Фирма 4 | C7: 125 | E7: =IF(C7=0,"",E$3+SUM(G$3:G7)-SUM(C$3:C7)) -> 1135 | F7: =IF(D7=0,"",F$3+SUM(H$3:H7)-SUM(D$3:D7)) -> 
A8: 21.11.2018 | B8: Фирма 5 | D8: 22 | E8: =IF(C8=0,"",E$3+SUM(G$3:G8)-SUM(C$3:C8)) ->  | F8: =IF(D8=0,"",F$3+SUM(H$3:H8)-SUM(D$3:D8)) -> 188
A9: 23.11.2018 | B9: Фирма 6 | C9: 16 | E9: =IF(C9=0,"",E$3+SUM(G$3:G9)-SUM(C$3:C9)) -> 1119 | F9: =IF(D9=0,"",F$3+SUM(H$3:H9)-SUM(D$3:D9)) -> 
A10: 23.11.2018 | B10: Фирма 7 | C10: 12 | E10: =IF(C10=0,"",E$3+SUM(G$3:G10)-SUM(C$3:C10)) -> 1107 | F10: =IF(D10=0,"",F$3+SUM(H$3:H10)-SUM(D$3:D10)) -> 
A11: 2018-11-25 | B11: Фирма 8 | D11: 12 | E11: =IF(C11=0,"",E$3+SUM(G$3:G11)-SUM(C$3:C11)) ->  | F11: =IF(D11=0,"",F$3+SUM(H$3:H11)-SUM(D$3:D11)) -> 176
A12: 2018-11-26 | B12: Фирма 9 | C12: 147 | E12: =IF(C12=0,"",E$3+SUM(G$3:G12)-SUM(C$3:C12)) -> 960 | F12: =IF(D12=0,"",F$3+SUM(H$3:H12)-SUM(D$3:D12)) -> 
A13: 2018-11-30 | B13: Фирма 10 | C13: 89 | E13: =IF(C13=0,"",E$3+SUM(G$3:G13)-SUM(C$3:C13)) -> 871 | F13: =IF(D13=0,"",F$3+SUM(H$3:H13)-SUM(D$3:D13)) -> 
A14: 2018-12-01 | B14: Фирма 11 | C14: 210 | E14: =IF(C14=0,"",E$3+SUM(G$3:G14)-SUM(C$3:C14)) -> 661 | F14: =IF(D14=0,"",F$3+SUM(H$3:H14)-SUM(D$3:D14)) -> 
E15: =IF(C15=0,"",E$3+SUM(G$3:G15)-SUM(C$3:C15)) ->  | F15: =IF(D15=0,"",F$3+SUM(H$3:H15)-SUM(D$3:D15)) -> 
E16: =IF(C16=0,"",E$3+SUM(G$3:G16)-SUM(C$3:C16)) ->  | F16: =IF(D16=0,"",F$3+SUM(H$3:H16)-SUM(D$3:D16)) -> 
E17: =IF(C17=0,"",E$3+SUM(G$3:G17)-SUM(C$3:C17)) ->  | F17: =IF(D17=0,"",F$3+SUM(H$3:H17)-SUM(D$3:D17)) -> 
E18: =IF(C18=0,"",E$3+SUM(G$3:G18)-SUM(C$3:C18)) ->  | F18: =IF(D18=0,"",F$3+SUM(H$3:H18)-SUM(D$3:D18)) -> 
E19: =IF(AND(H19=0,C19=0),"",E18+C19) ->  | F19: =IF(AND(H19=0,D19=0),"",F18+D19) -> 
